fUSD/lending_fUSD_20260506
["ID","MTS","AMOUNT","RATE_DAILY","PERIOD"]
[421705971,1778049235000,-1092.83356842,0.00038413,2]
[421705964,1778049235000,-594.0,0.00038356,2]
[421705965,1778049235000,-600.0,0.00038356,2]
[421705969,1778049235000,-350.0,0.00038356,2]
[421705972,1778049235000,-300.0,0.00038413,2]
[421706041,1778049236000,-300.0,0.00038413,2]
[421706046,1778049236000,-300.0,0.00038413,2]
[421706042,1778049236000,-300.0,0.00038413,2]
[421706040,1778049236000,-300.0,0.00038413,2]
[421706034,1778049236000,-481.18706949,0.00038413,2]
[421706039,1778049236000,-300.0,0.00038413,2]
[421706038,1778049236000,-300.0,0.00038413,2]
[421706035,1778049236000,-300.0,0.00038413,2]
[421706037,1778049236000,-300.0,0.00038413,2]
[421706047,1778049236000,-300.0,0.00038413,2]
[421706043,1778049236000,-483.27319916,0.00038413,2]
[421706036,1778049236000,-451.13853711,0.00038413,2]
[421706045,1778049236000,-300.0,0.00038413,2]
[421706053,1778049236000,-300.0,0.00038413,2]
[421706057,1778049236000,-363.66476074,0.00038413,2]
[421706050,1778049236000,-300.0,0.00038413,2]
[421706048,1778049236000,-1092.83356842,0.00038413,2]
[421706051,1778049236000,-300.0,0.00038413,2]
[421706049,1778049236000,-300.0,0.00038413,2]
[421706054,1778049236000,-300.0,0.00038413,2]
[421706052,1778049236000,-300.0,0.00038413,2]
[421706055,1778049236000,-300.0,0.00038413,2]
[421706059,1778049236000,-300.0,0.00038413,2]
[421706058,1778049236000,-300.0,0.00038413,2]
[421706063,1778049236000,-300.0,0.00038413,2]
[421706056,1778049236000,-596.62576207,0.00038413,2]
[421706033,1778049236000,-300.0,0.00038413,2]
[421706007,1778049236000,-300.06118393,0.00038413,2]
[421706032,1778049236000,-463.08064867,0.00038413,2]
[421706062,1778049236000,-491.85958444,0.00038413,2]
[421706008,1778049236000,-300.0,0.00038413,2]
[421706009,1778049236000,-300.0,0.00038413,2]
[421706012,1778049236000,-300.0,0.00038413,2]
[421706010,1778049236000,-300.0,0.00038413,2]
[421706015,1778049236000,-1793.38851355,0.00038413,2]
[421706014,1778049236000,-300.0,0.00038413,2]
[421706017,1778049236000,-343.40295571,0.00038413,2]
[421706011,1778049236000,-474.98520692,0.00038413,2]
[421706016,1778049236000,-300.0,0.00038413,2]
[421706019,1778049236000,-300.0,0.00038413,2]
[421706013,1778049236000,-852.7601399,0.00038413,2]
[421706018,1778049236000,-300.0,0.00038413,2]
[421706021,1778049236000,-309.07064608,0.00038413,2]
[421706022,1778049236000,-300.0,0.00038413,2]
[421706020,1778049236000,-1145.24599896,0.00038413,2]
[421706023,1778049236000,-862.96230178,0.00038413,2]
[421706027,1778049236000,-300.0,0.00038413,2]
[421706026,1778049236000,-300.0,0.00038413,2]
[421706025,1778049236000,-868.20760568,0.00038413,2]
[421706024,1778049236000,-300.0,0.00038413,2]
[421706031,1778049236000,-300.0,0.00038413,2]
[421706028,1778049236000,-300.0,0.00038413,2]
[421706029,1778049236000,-310.3725982,0.00038413,2]
[421706030,1778049236000,-300.0,0.00038413,2]
[421706044,1778049236000,-309.32134718,0.00038413,2]
[421706060,1778049236000,-300.0,0.00038413,2]
[421706112,1778049236000,-300.0,0.00038413,2]
[421706066,1778049236000,-300.0,0.00038413,2]
[421706096,1778049236000,-300.0,0.00038413,2]
[421706095,1778049236000,-300.0,0.00038413,2]
[421706097,1778049236000,-1145.24599896,0.00038413,2]
[421706101,1778049236000,-519.66520652,0.00038413,2]
[421706100,1778049236000,-862.96230178,0.00038413,2]
[421706098,1778049236000,-309.07064608,0.00038413,2]
[421706099,1778049236000,-300.0,0.00038413,2]
[421706103,1778049236000,-300.0,0.00038413,2]
[421706102,1778049236000,-300.0,0.00038413,2]
[421706105,1778049236000,-310.3725982,0.00038413,2]
[421706104,1778049236000,-300.0,0.00038413,2]
[421706106,1778049236000,-300.0,0.00038413,2]
[421706109,1778049236000,-300.0,0.00038413,2]
[421706107,1778049236000,-300.0,0.00038413,2]
[421706108,1778049236000,-463.08064867,0.00038413,2]
[421706111,1778049236000,-451.13853711,0.00038413,2]
[421706110,1778049236000,-481.18706949,0.00038413,2]
[421706119,1778049236000,-331.5694761,0.00038414,120]
[421706113,1778049236000,-300.0,0.00038413,2]
[421706117,1778049236000,-210.1366791,0.00038414,120]
[421706118,1778049236000,-283.6996602,0.00038414,120]
[421706114,1778049236000,-300.0,0.00038413,2]
[421706116,1778049236000,-186.7459471,0.00038414,120]
[421706115,1778049236000,-300.0,0.00038413,2]
[421706120,1778049236000,-500.0,0.00038414,120]
[421706094,1778049236000,-300.0,0.00038413,2]
[421706092,1778049236000,-1793.38851355,0.00038413,2]
[421706064,1778049236000,-300.0,0.00038413,2]
[421706084,1778049236000,-300.0,0.00038413,2]
[421706093,1778049236000,-343.40295571,0.00038413,2]
[421706068,1778049236000,-300.0,0.00038413,2]
[421706067,1778049236000,-603.45144378,0.00038413,2]
[421706065,1778049236000,-300.0,0.00038413,2]
[421706061,1778049236000,-300.0,0.00038413,2]
[421706069,1778049236000,-300.0,0.00038413,2]
[421706070,1778049236000,-300.0,0.00038413,2]
[421706074,1778049236000,-891.9241332,0.00038413,2]
[421706071,1778049236000,-526.86051061,0.00038413,2]
[421706072,1778049236000,-300.0,0.00038413,2]
[421706076,1778049236000,-309.13065885,0.00038413,2]
[421706073,1778049236000,-1065.13491717,0.00038413,2]
[421706075,1778049236000,-300.0,0.00038413,2]
[421706078,1778049236000,-300.0,0.00038413,2]
[421706080,1778049236000,-300.0,0.00038413,2]
[421706077,1778049236000,-724.83131769,0.00038413,2]
[421706090,1778049236000,-300.0,0.00038413,2]
[421706081,1778049236000,-300.0,0.00038413,2]
[421706083,1778049236000,-300.00000001,0.00038413,2]
[421706082,1778049236000,-300.06118393,0.00038413,2]
[421706079,1778049236000,-301.2859328,0.00038413,2]
[421706089,1778049236000,-852.7601399,0.00038413,2]
[421706085,1778049236000,-300.0,0.00038413,2]
[421706091,1778049236000,-300.0,0.00038413,2]
[421706086,1778049236000,-300.0,0.00038413,2]
[421706087,1778049236000,-474.98520692,0.00038413,2]
[421706088,1778049236000,-300.0,0.00038413,2]
[421706161,1778049237000,-1382.682312,0.000395,30]
[421706171,1778049237000,-346.1528151,0.000399,120]
[421706172,1778049237000,-200141.71610244,0.000399,120]
[421706151,1778049237000,-151.0,0.000395,30]
[421706158,1778049237000,-243.725788,0.000395,30]
[421706149,1778049237000,-151.0,0.000395,30]
[421706150,1778049237000,-180.104399,0.000395,30]
[421706153,1778049237000,-153.968219,0.000395,30]
[421706148,1778049237000,-180.104399,0.000395,30]
[421706160,1778049237000,-1382.682312,0.000395,30]
[421706152,1778049237000,-180.104399,0.000395,30]
[421706165,1778049237000,-150.0,0.00039579,2]
[421706179,1778049237000,-172.98,0.0004,2]
[421706164,1778049237000,-2017.4305,0.0003955,2]
[421706163,1778049237000,-1382.682312,0.000395,30]
[421706167,1778049237000,-250.0,0.00039753,65]
[421706166,1778049237000,-366.99,0.000396,15]
[421706169,1778049237000,-10000.0,0.000398,30]
[421706170,1778049237000,-3464.69,0.00039864,120]
[421706168,1778049237000,-2017.4305,0.0003979,2]
[421706185,1778049237000,-889.395116,0.0004,120]
[421706173,1778049237000,-152.92,0.00039926,120]
[421706174,1778049237000,-166.79,0.00039926,30]
[421706184,1778049237000,-5321.04932443,0.0004,120]
[421706176,1778049237000,-152.0,0.00039996,16]
[421706159,1778049237000,-162.383069,0.000395,30]
[421706162,1778049237000,-1382.682312,0.000395,30]
[421706157,1778049237000,-243.725788,0.000395,30]
[421706146,1778049237000,-151.0,0.000395,30]
[421706154,1778049237000,-180.104399,0.000395,30]
[421706123,1778049237000,-150.0,0.000385,120]
[421706181,1778049237000,-153.0,0.0004,120]
[421706122,1778049237000,-271.5036769,0.00038414,120]
[421706125,1778049237000,-2017.4305,0.00038831,2]
[421706124,1778049237000,-2017.4305,0.00038591,2]
[421706127,1778049237000,-6000.0,0.000389,30]
[421706128,1778049237000,-500.16742932,0.00038904,5]
[421706126,1778049237000,-1208.0,0.00038834,2]
[421706129,1778049237000,-2017.4305,0.0003907,2]
[421706134,1778049237000,-151.0,0.000393,30]
[421706131,1778049237000,-2000.0,0.000393,7]
[421706132,1778049237000,-151.0,0.000393,30]
[421706133,1778049237000,-151.0,0.000393,30]
[421706130,1778049237000,-152.0,0.00039129,15]
[421706135,1778049237000,-151.0,0.000393,30]
[421706140,1778049237000,-707.2413,0.000394,30]
[421706136,1778049237000,-2017.4305,0.0003931,2]
[421706141,1778049237000,-707.2413,0.000394,30]
[421706138,1778049237000,-3672.7778125,0.000394,120]
[421706137,1778049237000,-3492.21221339,0.000394,120]
[421706139,1778049237000,-151.0,0.000394,30]
[421706144,1778049237000,-156.48951136,0.00039464,120]
[421706143,1778049237000,-707.2413,0.000394,30]
[421706145,1778049237000,-415.77,0.000395,30]
[421706142,1778049237000,-707.2413,0.000394,30]
[421706147,1778049237000,-151.0,0.000395,30]
[421706155,1778049237000,-243.725788,0.000395,30]
[421706156,1778049237000,-243.725788,0.000395,30]
[421706121,1778049237000,-701.6405734,0.00038414,120]
[421706175,1778049237000,-3464.69,0.00039964,120]
[421706182,1778049237000,-2000.0,0.0004,120]
[421706216,1778049237000,-151.0,0.00040334,30]
[421706217,1778049237000,-151.0,0.00040334,30]
[421706210,1778049237000,-278.092369,0.00040334,30]
[421706218,1778049237000,-151.0,0.00040334,30]
[421706220,1778049237000,-151.0,0.00040334,30]
[421706219,1778049237000,-151.0,0.00040334,30]
[421706221,1778049237000,-133714.9781291,0.00040334,2]
[421706223,1778049237000,-151.0,0.00040334,30]
[421706224,1778049237000,-151.0,0.00040334,30]
[421706222,1778049237000,-151.0,0.00040334,30]
[421706225,1778049237000,-151.0,0.00040334,30]
[421706226,1778049237000,-151.0,0.00040334,30]
[421706227,1778049237000,-151.0,0.00040334,30]
[421706228,1778049237000,-151.0,0.00040334,30]
[421706229,1778049237000,-241.35083,0.00040334,30]
[421706230,1778049237000,-281.783483,0.00040334,30]
[421706232,1778049237000,-281.783483,0.00040334,30]
[421706231,1778049237000,-281.783483,0.00040334,30]
[421706233,1778049237000,-281.783483,0.00040334,30]
[421706234,1778049237000,-1920.959522,0.00040334,28]
[421706235,1778049237000,-1920.959522,0.00040334,28]
[421706236,1778049237000,-1920.959522,0.00040334,28]
[421706238,1778049237000,-1529.201548,0.00040334,30]
[421706237,1778049237000,-1920.959522,0.00040334,28]
[421706239,1778049237000,-910.238616,0.00040334,7]
[421706180,1778049237000,-153.0,0.0004,120]
[421706241,1778049237000,-910.238616,0.00040334,7]
[421706215,1778049237000,-151.0,0.00040334,30]
[421706214,1778049237000,-151.0,0.00040334,30]
[421706240,1778049237000,-1529.201548,0.00040334,30]
[421706211,1778049237000,-278.092369,0.00040334,30]
[421706213,1778049237000,-151.0,0.00040334,30]
[421706177,1778049237000,-11996.04537072,0.0004,4]
[421706183,1778049237000,-1777.0864347,0.0004,120]
[421706186,1778049237000,-1197.23113225,0.0004,120]
[421706188,1778049237000,-152.92,0.00040026,120]
[421706190,1778049237000,-3464.69,0.00040064,120]
[421706189,1778049237000,-2017.4305,0.00040029,2]
[421706187,1778049237000,-413.25656224,0.0004,120]
[421706191,1778049237000,-152.92,0.00040126,120]
[421706197,1778049237000,-452.87,0.0004029,60]
[421706194,1778049237000,-5630.2684035,0.00040247,2]
[421706196,1778049237000,-3956.45,0.0004029,60]
[421706192,1778049237000,-3464.6948,0.00040164,120]
[421706195,1778049237000,-2017.4306,0.00040269,2]
[421706178,1778049237000,-150.0,0.0004,2]
[421706199,1778049237000,-27417.04,0.0004029,60]
[421706209,1778049237000,-278.092369,0.00040334,30]
[421706212,1778049237000,-278.092369,0.00040334,30]
[421706208,1778049237000,-151.0,0.00040334,30]
[421706206,1778049237000,-996270.8939192,0.00040334,2]
[421706193,1778049237000,-152.92,0.00040226,120]
[421706203,1778049237000,-2016.73944537,0.000403,30]
[421706207,1778049237000,-151.0,0.00040334,30]
[421706198,1778049237000,-2640.26,0.0004029,60]
[421706202,1778049237000,-2016.73944539,0.000403,30]
[421706204,1778049237000,-152.92,0.00040326,120]
[421706201,1778049237000,-151.0,0.00040297,14]
[421706205,1778049237000,-3766.5228157,0.00040334,2]
[421706200,1778049237000,-492.11,0.0004029,60]
[421706281,1778049238000,-250.0,0.00040548,2]
[421706284,1778049238000,-260.05273032,0.00040548,2]
[421706282,1778049238000,-250.0,0.00040548,2]
[421706276,1778049238000,-921.23621971,0.00040547,60]
[421706272,1778049238000,-3672.7778125,0.000405,120]
[421706273,1778049238000,-152.92,0.00040526,120]
[421706274,1778049238000,-1247.3476,0.00040533,4]
[421706280,1778049238000,-193.94104199,0.00040548,2]
[421706271,1778049238000,-3492.21221339,0.000405,120]
[421706279,1778049238000,-150.0,0.00040548,2]
[421706277,1778049238000,-150.0,0.00040548,2]
[421706283,1778049238000,-250.0,0.00040548,2]
[421706286,1778049238000,-501.0,0.00040548,60]
[421706288,1778049238000,-500.0,0.00040548,60]
[421706289,1778049238000,-501.0,0.00040548,60]
[421706291,1778049238000,-500.0,0.00040548,60]
[421706285,1778049238000,-501.0,0.00040548,60]
[421706287,1778049238000,-500.0,0.00040548,60]
[421706292,1778049238000,-500.0,0.00040548,60]
[421706296,1778049238000,-500.0,0.00040548,60]
[421706294,1778049238000,-500.0,0.00040548,60]
[421706298,1778049238000,-500.0,0.00040548,60]
[421706300,1778049238000,-501.0,0.00040548,60]
[421706295,1778049238000,-501.0,0.00040548,60]
[421706275,1778049238000,-1099.5765,0.00040533,4]
[421706290,1778049238000,-500.0,0.00040548,60]
[421706278,1778049238000,-150.0,0.00040548,2]
[421706251,1778049238000,-328.357965,0.00040334,30]
[421706269,1778049238000,-152.92,0.00040426,120]
[421706297,1778049238000,-500.0,0.00040548,60]
[421706242,1778049238000,-1529.201548,0.00040334,30]
[421706245,1778049238000,-910.238616,0.00040334,7]
[421706243,1778049238000,-910.238616,0.00040334,7]
[421706244,1778049238000,-1529.201548,0.00040334,30]
[421706255,1778049238000,-151.0,0.00040334,30]
[421706248,1778049238000,-328.357965,0.00040334,30]
[421706253,1778049238000,-318.019443,0.00040334,30]
[421706252,1778049238000,-318.019443,0.00040334,30]
[421706247,1778049238000,-151.0,0.00040334,30]
[421706250,1778049238000,-328.357965,0.00040334,30]
[421706256,1778049238000,-318.019443,0.00040334,30]
[421706270,1778049238000,-361.72528501,0.00040482,2]
[421706254,1778049238000,-964.36917,0.00040334,30]
[421706257,1778049238000,-964.36917,0.00040334,30]
[421706259,1778049238000,-964.36917,0.00040334,30]
[421706258,1778049238000,-318.019443,0.00040334,30]
[421706261,1778049238000,-1419.836767,0.00040334,30]
[421706260,1778049238000,-964.36917,0.00040334,30]
[421706263,1778049238000,-1419.836767,0.00040334,30]
[421706265,1778049238000,-278.48938,0.00040334,30]
[421706267,1778049238000,-278.48938,0.00040334,30]
[421706262,1778049238000,-1419.836767,0.00040334,30]
[421706268,1778049238000,-278.48938,0.00040334,30]
[421706264,1778049238000,-1419.836767,0.00040334,30]
[421706266,1778049238000,-278.48938,0.00040334,30]
[421706249,1778049238000,-328.357965,0.00040334,30]
[421706293,1778049238000,-501.0,0.00040548,60]
[421706246,1778049238000,-151.0,0.00040334,30]
[421706302,1778049238000,-500.0,0.00040548,60]
[421706329,1778049238000,-500.0,0.00040548,60]
[421706330,1778049238000,-500.0,0.00040548,60]
[421706333,1778049238000,-500.0,0.00040548,60]
[421706332,1778049238000,-500.0,0.00040548,60]
[421706337,1778049238000,-500.0,0.00040548,60]
[421706334,1778049238000,-500.0,0.00040548,60]
[421706336,1778049238000,-500.0,0.00040548,60]
[421706335,1778049238000,-501.0,0.00040548,60]
[421706349,1778049238000,-500.0,0.00040548,60]
[421706348,1778049238000,-493.40619236,0.00040548,60]
[421706354,1778049238000,-501.0,0.00040548,60]
[421706341,1778049238000,-501.0,0.00040548,60]
[421706331,1778049238000,-501.0,0.00040548,60]
[421706351,1778049238000,-500.0,0.00040548,60]
[421706343,1778049238000,-500.0,0.00040548,60]
[421706352,1778049238000,-635.42871133,0.00040548,60]
[421706346,1778049238000,-501.0,0.00040548,60]
[421706344,1778049238000,-500.0,0.00040548,60]
[421706347,1778049238000,-500.0,0.00040548,60]
[421706342,1778049238000,-500.0,0.00040548,60]
[421706358,1778049238000,-505.47706299,0.00040548,60]
[421706357,1778049238000,-501.0,0.00040548,60]
[421706355,1778049238000,-501.0,0.00040548,60]
[421706353,1778049238000,-501.0,0.00040548,60]
[421706356,1778049238000,-501.0,0.00040548,60]
[421706303,1778049238000,-500.0,0.00040548,60]
[421706345,1778049238000,-500.0,0.00040548,60]
[421706327,1778049238000,-501.0,0.00040548,60]
[421706350,1778049238000,-500.0,0.00040548,60]
[421706340,1778049238000,-500.0,0.00040548,60]
[421706339,1778049238000,-500.0,0.00040548,60]
[421706301,1778049238000,-500.0,0.00040548,60]
[421706299,1778049238000,-216.99161194,0.00040548,60]
[421706305,1778049238000,-501.0,0.00040548,60]
[421706304,1778049238000,-150.0,0.00040548,2]
[421706307,1778049238000,-500.0,0.00040548,60]
[421706306,1778049238000,-500.0,0.00040548,60]
[421706310,1778049238000,-500.0,0.00040548,60]
[421706309,1778049238000,-501.0,0.00040548,60]
[421706312,1778049238000,-500.0,0.00040548,60]
[421706308,1778049238000,-500.0,0.00040548,60]
[421706311,1778049238000,-501.0,0.00040548,60]
[421706314,1778049238000,-500.0,0.00040548,60]
[421706313,1778049238000,-500.0,0.00040548,60]
[421706326,1778049238000,-500.0,0.00040548,60]
[421706315,1778049238000,-501.0,0.00040548,60]
[421706328,1778049238000,-500.0,0.00040548,60]
[421706320,1778049238000,-500.0,0.00040548,60]
[421706338,1778049238000,-501.0,0.00040548,60]
[421706317,1778049238000,-500.0,0.00040548,60]
[421706324,1778049238000,-500.0,0.00040548,60]
[421706318,1778049238000,-500.0,0.00040548,60]
[421706325,1778049238000,-500.0,0.00040548,60]
[421706319,1778049238000,-501.0,0.00040548,60]
[421706321,1778049238000,-500.0,0.00040548,60]
[421706323,1778049238000,-500.0,0.00040548,60]
[421706322,1778049238000,-501.0,0.00040548,60]
[421706316,1778049238000,-150.0,0.00040548,2]
[421706383,1778049239000,-314.0,0.00040576,2]
[421706385,1778049239000,-350.0,0.0004064,2]
[421706386,1778049239000,-163.0,0.00040651,11]
[421706390,1778049239000,-153.0,0.000408,120]
[421706391,1778049239000,-152.92,0.00040826,120]
[421706387,1778049239000,-250.0,0.00040661,80]
[421706388,1778049239000,-26383.84668809,0.000407,12]
[421706389,1778049239000,-152.92,0.00040726,120]
[421706392,1778049239000,-152.0,0.00040862,17]
[421706393,1778049239000,-350.0,0.00040898,2]
[421706401,1778049239000,-607.81341,0.00041,30]
[421706400,1778049239000,-607.81341,0.00041,30]
[421706395,1778049239000,-152.92,0.00040926,120]
[421706398,1778049239000,-164.11,0.00041,90]
[421706397,1778049239000,-163.0,0.00041,120]
[421706396,1778049239000,-43944.60128392,0.00041,120]
[421706399,1778049239000,-51999.99999983,0.00041,2]
[421706402,1778049239000,-607.81341,0.00041,30]
[421706384,1778049239000,-152.92,0.00040626,120]
[421706404,1778049239000,-1127.64890688,0.00041,90]
[421706394,1778049239000,-415.77,0.000409,30]
[421706382,1778049239000,-150.0,0.00040576,2]
[421706365,1778049239000,-203.08154012,0.00040548,60]
[421706378,1778049239000,-500.0,0.00040548,60]
[421706414,1778049239000,-150.0,0.00041096,30]
[421706363,1778049239000,-500.0,0.00040548,60]
[421706360,1778049239000,-500.0,0.00040548,60]
[421706359,1778049239000,-500.0,0.00040548,60]
[421706362,1778049239000,-500.0,0.00040548,60]
[421706361,1778049239000,-150.0,0.00040548,60]
[421706364,1778049239000,-500.0,0.00040548,60]
[421706373,1778049239000,-500.0,0.00040548,60]
[421706366,1778049239000,-500.0,0.00040548,60]
[421706368,1778049239000,-500.0,0.00040548,60]
[421706367,1778049239000,-500.0,0.00040548,60]
[421706369,1778049239000,-500.0,0.00040548,60]
[421706370,1778049239000,-500.0,0.00040548,60]
[421706371,1778049239000,-500.0,0.00040548,60]
[421706372,1778049239000,-500.0,0.00040548,60]
[421706375,1778049239000,-500.0,0.00040548,60]
[421706374,1778049239000,-500.0,0.00040548,60]
[421706376,1778049239000,-500.0,0.00040548,60]
[421706377,1778049239000,-500.0,0.00040548,60]
[421706380,1778049239000,-176.81839514,0.00040548,60]
[421706381,1778049239000,-1087.0,0.00040576,2]
[421706379,1778049239000,-500.0,0.00040548,60]
[421706407,1778049239000,-500.0,0.00041022,21]
[421706406,1778049239000,-520.12089416,0.00041022,21]
[421706410,1778049239000,-156.48951136,0.00041064,120]
[421706434,1778049239000,-1560.0,0.0004137,120]
[421706433,1778049239000,-152.92,0.00041326,120]
[421706436,1778049239000,-2000.0,0.00041403,120]
[421706435,1778049239000,-5825.59664551,0.00041375,2]
[421706438,1778049239000,-2500.0,0.000415,120]
[421706437,1778049239000,-152.92,0.00041426,120]
[421706448,1778049239000,-1142.1,0.00041694,120]
[421706440,1778049239000,-8902.44406883,0.000415,120]
[421706439,1778049239000,-153.0,0.000415,120]
[421706443,1778049239000,-150.0,0.00041558,120]
[421706446,1778049239000,-202.45805464,0.0004166,30]
[421706445,1778049239000,-1560.0,0.00041644,120]
[421706442,1778049239000,-152.92,0.00041526,120]
[421706444,1778049239000,-152.92,0.00041626,120]
[421706447,1778049239000,-332.99,0.00041666,7]
[421706450,1778049239000,-152.92,0.00041726,120]
[421706451,1778049239000,-152.0,0.00041728,18]
[421706449,1778049239000,-151.59,0.00041705,2]
[421706453,1778049239000,-3492.21221339,0.000418,120]
[421706452,1778049239000,-250.0,0.00041776,95]
[421706454,1778049239000,-3672.7778125,0.000418,120]
[421706431,1778049239000,-500.0,0.00041309,91]
[421706432,1778049239000,-250.0,0.00041311,91]
[421706441,1778049239000,-836.76182996,0.000415,30]
[421706428,1778049239000,-152.92,0.00041226,120]
[421706430,1778049239000,-500.0,0.000413,6]
[421706408,1778049239000,-152.92,0.00041026,120]
[421706405,1778049239000,-700.0,0.00041022,21]
[421706403,1778049239000,-607.81341,0.00041,30]
[421706411,1778049239000,-183.0,0.00041096,30]
[421706409,1778049239000,-1142.1,0.00041041,120]
[421706413,1778049239000,-272.0,0.00041096,30]
[421706416,1778049239000,-1560.0,0.00041096,120]
[421706419,1778049239000,-151.0,0.00041096,120]
[421706417,1778049239000,-156.203094,0.00041096,120]
[421706412,1778049239000,-150.0,0.00041096,30]
[421706423,1778049239000,-500.0,0.0004119,9]
[421706421,1778049239000,-152.92,0.00041126,120]
[421706424,1778049239000,-2500.0,0.000412,120]
[421706418,1778049239000,-336.85437484,0.00041096,2]
[421706422,1778049239000,-350.0,0.00041158,2]
[421706425,1778049239000,-153.0,0.000412,120]
[421706420,1778049239000,-151.0,0.00041096,120]
[421706429,1778049239000,-8426.47188997,0.00041234,31]
[421706426,1778049239000,-25092.44720804,0.00041209,70]
[421706427,1778049239000,-500.0,0.00041226,5]
[421706415,1778049239000,-163.0,0.00041096,30]
[421706491,1778049240000,-1560.0,0.00041918,120]
[421706486,1778049240000,-150.54233273,0.000419,120]
[421706489,1778049240000,-150.54233273,0.000419,120]
[421706495,1778049240000,-919.79186239,0.00041998,120]
[421706490,1778049240000,-150.54233273,0.000419,120]
[421706492,1778049240000,-152.92,0.00041926,120]
[421706487,1778049240000,-150.54233273,0.000419,120]
[421706488,1778049240000,-150.54233273,0.000419,120]
[421706498,1778049240000,-500.0,0.00042,45]
[421706497,1778049240000,-500.0,0.00042,45]
[421706493,1778049240000,-184.0,0.00041943,30]
[421706496,1778049240000,-50000.0,0.00042,120]
[421706494,1778049240000,-154.99317027,0.00041975,2]
[421706507,1778049240000,-3151.3775,0.00042,7]
[421706511,1778049240000,-3819.48820206,0.00042,120]
[421706510,1778049240000,-500.0,0.00042,45]
[421706499,1778049240000,-4500.0,0.00042,30]
[421706501,1778049240000,-183.0,0.00042,2]
[421706504,1778049240000,-500.0,0.00042,45]
[421706506,1778049240000,-500.0,0.00042,45]
[421706505,1778049240000,-163.0,0.00042,120]
[421706502,1778049240000,-500.0,0.00042,45]
[421706503,1778049240000,-500.0,0.00042,45]
[421706509,1778049240000,-500.0,0.00042,45]
[421706508,1778049240000,-500.0,0.00042,45]
[421706478,1778049240000,-15593.8179396,0.000419,30]
[421706500,1778049240000,-500.0,0.00042,45]
[421706477,1778049240000,-166.84,0.00041899,30]
[421706457,1778049240000,-200.0,0.00041803,120]
[421706476,1778049240000,-500.0,0.00041888,93]
[421706460,1778049240000,-297.922,0.00041812,30]
[421706459,1778049240000,-213.48,0.00041811,120]
[421706456,1778049240000,-9142.478542,0.000418,30]
[421706455,1778049240000,-2500.0,0.000418,120]
[421706458,1778049240000,-421.77,0.00041811,120]
[421706512,1778049240000,-971.15852387,0.00042,120]
[421706461,1778049240000,-500.0,0.00041824,13]
[421706462,1778049240000,-152.92,0.00041826,120]
[421706464,1778049240000,-245.49086411,0.0004183,30]
[421706465,1778049240000,-150.0,0.0004183,30]
[421706463,1778049240000,-150.0,0.0004183,30]
[421706469,1778049240000,-246.92,0.0004183,120]
[421706468,1778049240000,-1938.10029955,0.0004183,30]
[421706467,1778049240000,-150.0,0.0004183,30]
[421706466,1778049240000,-922.85402278,0.0004183,30]
[421706470,1778049240000,-350.0,0.00041839,2]
[421706472,1778049240000,-742.2641055,0.00041857,120]